[Event "*** Titled Tuesday Blitz"]
[Site "Chess.com"]
[Date "2020.05.19"]
[Round "5"]
[White "vpantev"]
[Black "maciek_92"]
[Result "1-0"]
[WhiteElo "2568"]
[BlackElo "2725"]
[TimeControl "180+1"]
[EndTime "12:56:46 PDT"]
[Termination "vpantev won by resignation"]

1. d4 {[%clk 0:02:55.4]} 1... Nf6 {[%clk 0:02:58.8]} 2. Nf3 {[%clk 0:02:55.1]}
2... b6 {[%clk 0:02:58.3]} 3. Bf4 {[%clk 0:02:54.7]} 3... Bb7 {[%clk 0:02:57.5]}
4. e3 {[%clk 0:02:55.2]} 4... e6 {[%clk 0:02:57.2]} 5. Bd3 {[%clk 0:02:54.5]}
5... Be7 {[%clk 0:02:53.7]} 6. h3 {[%clk 0:02:54.3]} 6... c5 {[%clk 0:02:52.9]}
7. c3 {[%clk 0:02:50.7]} 7... Nc6 {[%clk 0:02:52.7]} 8. O-O {[%clk 0:02:50]}
8... O-O {[%clk 0:02:49.2]} 9. Nbd2 {[%clk 0:02:49.1]} 9... d5 {[%clk 0:02:44]}
10. a3 {[%clk 0:02:47]} 10... a5 {[%clk 0:02:31.5]} 11. Ne5 {[%clk 0:02:46.6]}
11... Nxe5 {[%clk 0:02:28.4]} 12. Bxe5 {[%clk 0:02:45.8]} 12... Nd7 {[%clk
0:02:28.1]} 13. Bg3 {[%clk 0:02:43.5]} 13... f5 {[%clk 0:02:26.4]} 14. Nf3
{[%clk 0:02:39]} 14... Nf6 {[%clk 0:02:12.7]} 15. c4 {[%clk 0:02:34.8]} 15...
Ne4 {[%clk 0:02:08.7]} 16. Be5 {[%clk 0:02:34.1]} 16... a4 {[%clk 0:01:50.4]}
17. Rc1 {[%clk 0:02:32]} 17... Qd7 {[%clk 0:01:34.7]} 18. Qe2 {[%clk 0:02:30.6]}
18... b5 {[%clk 0:01:21.4]} 19. cxd5 {[%clk 0:02:22.3]} 19... c4 {[%clk
0:01:18.4]} 20. Bb1 {[%clk 0:02:04.8]} 20... Qxd5 {[%clk 0:01:11.5]} 21. Rfd1
{[%clk 0:02:01.5]} 21... Rac8 {[%clk 0:01:08.3]} 22. Ne1 {[%clk 0:02:00.3]}
22... c3 {[%clk 0:01:03]} 23. f3 {[%clk 0:01:59.5]} 23... Nd2 {[%clk 0:00:44.9]}
24. bxc3 {[%clk 0:01:51.5]} 24... Nb3 {[%clk 0:00:40.5]} 25. Bd3 {[%clk
0:01:33.9]} 25... Nxc1 {[%clk 0:00:38.3]} 26. Rxc1 {[%clk 0:01:33.9]} 26... Bxa3
{[%clk 0:00:38.8]} 27. Ra1 {[%clk 0:01:32.2]} 27... Rxc3 {[%clk 0:00:35.4]} 28.
Bxb5 {[%clk 0:01:32.1]} 28... Bc1 {[%clk 0:00:20.8]} 29. Rxa4 {[%clk 0:01:17]}
29... Bxe3+ {[%clk 0:00:20.5]} 30. Kh2 {[%clk 0:01:15.2]} 30... f4 {[%clk
0:00:17.2]} 31. Bd3 {[%clk 0:01:07.6]} 31... Qd7 {[%clk 0:00:15.9]} 32. Ra7
{[%clk 0:00:54.9]} 32... Rb3 {[%clk 0:00:07.8]} 33. Qc2 {[%clk 0:00:51.8]} 33...
Rb6 {[%clk 0:00:06.5]} 34. Bxh7+ {[%clk 0:00:51.4]} 34... Kh8 {[%clk 0:00:07.1]}
35. Bg6 {[%clk 0:00:47.2]} 35... Rc6 {[%clk 0:00:06.9]} 36. Qb3 {[%clk
0:00:45.4]} 36... Bxd4 {[%clk 0:00:03.8]} 37. Rxb7 {[%clk 0:00:44.1]} 37... Qxb7
{[%clk 0:00:01.6]} 38. Qxb7 {[%clk 0:00:42.8]} 1-0

[Event "*** Titled Tuesday Blitz"]
[Site "Chess.com"]
[Date "2020.05.19"]
[Round "5"]
[White "Tashik"]
[Black "diablanni"]
[Result "0-1"]
[WhiteElo "2488"]
[BlackElo "2338"]
[TimeControl "180+1"]
[EndTime "12:56:46 PDT"]
[Termination "diablanni won by resignation"]

1. c4 {[%clk 0:03:00.9]} 1... e5 {[%clk 0:02:58.9]} 2. Nc3 {[%clk 0:03:00.4]}
2... Nc6 {[%clk 0:02:59]} 3. Nf3 {[%clk 0:03:00.9]} 3... f5 {[%clk 0:02:58.9]}
4. g3 {[%clk 0:02:59.2]} 4... Nf6 {[%clk 0:02:50.2]} 5. d4 {[%clk 0:02:58.7]}
5... e4 {[%clk 0:02:48.5]} 6. d5 {[%clk 0:02:59.2]} 6... exf3 {[%clk 0:02:43.2]}
7. dxc6 {[%clk 0:03:00.1]} 7... fxe2 {[%clk 0:02:36.3]} 8. Qxe2+ {[%clk
0:02:55.3]} 8... Be7 {[%clk 0:02:35.4]} 9. cxd7+ {[%clk 0:02:51.5]} 9... Bxd7
{[%clk 0:02:31.8]} 10. Bg2 {[%clk 0:02:51.9]} 10... c6 {[%clk 0:02:27]} 11. O-O
{[%clk 0:02:51]} 11... O-O {[%clk 0:02:26.8]} 12. Bf4 {[%clk 0:02:43.9]} 12...
Re8 {[%clk 0:02:26.7]} 13. Qc2 {[%clk 0:02:35.2]} 13... Qa5 {[%clk 0:02:14.6]}
14. a3 {[%clk 0:02:25]} 14... Be6 {[%clk 0:02:06.2]} 15. b3 {[%clk 0:02:09.3]}
15... Rad8 {[%clk 0:02:01.5]} 16. Rfe1 {[%clk 0:02:08.9]} 16... Bc8 {[%clk
0:01:52.9]} 17. Re5 {[%clk 0:02:02.9]} 17... Qb6 {[%clk 0:01:47.3]} 18. c5
{[%clk 0:01:12.5]} 18... Bxc5 {[%clk 0:01:42.7]} 19. Rxe8+ {[%clk 0:01:02.1]}
19... Rxe8 {[%clk 0:01:37.1]} 20. Na4 {[%clk 0:01:02.4]} 20... Bxf2+ {[%clk
0:01:36]} 21. Qxf2 {[%clk 0:01:02]} 21... Qxb3 {[%clk 0:01:36.4]} 22. Nc5 {[%clk
0:00:59.5]} 22... Qc3 {[%clk 0:01:33.9]} 23. Rc1 {[%clk 0:00:57.7]} 23... Qxa3
{[%clk 0:01:33.4]} 24. h3 {[%clk 0:00:57.5]} 24... Nh5 {[%clk 0:01:12.6]} 25.
Bd6 {[%clk 0:00:54.3]} 25... Qxc1+ {[%clk 0:00:57.6]} 26. Kh2 {[%clk 0:00:52.9]}
26... Nf6 {[%clk 0:00:51]} 27. Qa2+ {[%clk 0:00:21.8]} 27... Kh8 {[%clk
0:00:36.3]} 28. Qf7 {[%clk 0:00:19.9]} 28... Qh6 {[%clk 0:00:18.6]} 29. Nxb7
{[%clk 0:00:17.8]} 29... Bxb7 {[%clk 0:00:18.1]} 30. Qxb7 {[%clk 0:00:18]} 30...
Ng4+ {[%clk 0:00:18.3]} 31. Kg1 {[%clk 0:00:17.6]} 31... Qe3+ {[%clk 0:00:18]}
32. Kh1 {[%clk 0:00:16.8]} 32... Qe1+ {[%clk 0:00:17.5]} 0-1

[Event "*** Titled Tuesday Blitz"]
[Site "Chess.com"]
[Date "2020.05.19"]
[Round "5"]
[White "SameerMujumdar"]
[Black "mortngabriel"]
[Result "1-0"]
[WhiteElo "2275"]
[BlackElo "2453"]
[TimeControl "180+1"]
[EndTime "12:56:46 PDT"]
[Termination "SameerMujumdar won on time"]

1. e4 {[%clk 0:03:00.9]} 1... c5 {[%clk 0:02:45.5]} 2. Nf3 {[%clk 0:02:59.2]}
2... d6 {[%clk 0:02:45.3]} 3. d4 {[%clk 0:02:59.1]} 3... cxd4 {[%clk 0:02:45.3]}
4. Nxd4 {[%clk 0:03:00]} 4... Nf6 {[%clk 0:02:45.8]} 5. Nc3 {[%clk 0:03:00.6]}
5... g6 {[%clk 0:02:46.4]} 6. Be2 {[%clk 0:02:57.6]} 6... Bg7 {[%clk 0:02:46.8]}
7. O-O {[%clk 0:02:58.2]} 7... O-O {[%clk 0:02:47.7]} 8. Be3 {[%clk 0:02:58.3]}
8... Nc6 {[%clk 0:02:48.2]} 9. Nb3 {[%clk 0:02:57.5]} 9... Be6 {[%clk
0:02:42.2]} 10. Qd2 {[%clk 0:02:57]} 10... Rc8 {[%clk 0:02:18.1]} 11. Rad1
{[%clk 0:02:54.8]} 11... Ne5 {[%clk 0:02:16.1]} 12. Nd4 {[%clk 0:02:41.1]} 12...
Nc4 {[%clk 0:02:12.3]} 13. Bxc4 {[%clk 0:02:37]} 13... Rxc4 {[%clk 0:02:13.2]}
14. Nxe6 {[%clk 0:02:36]} 14... fxe6 {[%clk 0:02:14.1]} 15. e5 {[%clk
0:02:30.2]} 15... Ng4 {[%clk 0:01:49.9]} 16. exd6 {[%clk 0:02:28.2]} 16... Nxe3
{[%clk 0:01:47.1]} 17. Qxe3 {[%clk 0:02:28.2]} 17... Qd7 {[%clk 0:01:29.1]} 18.
dxe7 {[%clk 0:02:20.9]} 18... Qxe7 {[%clk 0:01:29.2]} 19. Rd3 {[%clk 0:01:56.3]}
19... a6 {[%clk 0:01:24]} 20. Re1 {[%clk 0:01:53.1]} 20... b5 {[%clk 0:01:15.2]}
21. a3 {[%clk 0:01:46.7]} 21... a5 {[%clk 0:01:09.3]} 22. Nxb5 {[%clk
0:01:34.4]} 22... Rxc2 {[%clk 0:01:04.3]} 23. Rd2 {[%clk 0:01:34.9]} 23... Rxb2
{[%clk 0:00:50]} 24. Rxb2 {[%clk 0:01:28.7]} 24... Bxb2 {[%clk 0:00:50.9]} 25.
Qb3 {[%clk 0:01:26.2]} 25... Qf6 {[%clk 0:00:33.7]} 26. Qxe6+ {[%clk 0:01:00]}
26... Qxe6 {[%clk 0:00:33.2]} 27. Rxe6 {[%clk 0:01:00.9]} 27... Rc8 {[%clk
0:00:29.4]} 28. g3 {[%clk 0:00:59.3]} 28... Rc1+ {[%clk 0:00:19.2]} 29. Kg2
{[%clk 0:00:58.7]} 29... Ra1 {[%clk 0:00:19.6]} 30. Ra6 {[%clk 0:00:53.6]} 30...
Bxa3 {[%clk 0:00:18.7]} 31. Rxa5 {[%clk 0:00:52.9]} 31... Bb2 {[%clk 0:00:19.2]}
32. Rxa1 {[%clk 0:00:51.5]} 32... Bxa1 {[%clk 0:00:20.1]} 33. f4 {[%clk
0:00:51.6]} 33... Kf7 {[%clk 0:00:19.5]} 34. Kf3 {[%clk 0:00:51.9]} 34... h5
{[%clk 0:00:18.7]} 35. Ke4 {[%clk 0:00:50.5]} 35... Kf6 {[%clk 0:00:10.5]} 36.
h3 {[%clk 0:00:50.2]} 36... g5 {[%clk 0:00:08.6]} 37. f5 {[%clk 0:00:48.5]}
37... g4 {[%clk 0:00:04.6]} 38. hxg4 {[%clk 0:00:45.3]} 38... hxg4 {[%clk
0:00:05.5]} 39. Nc7 {[%clk 0:00:45]} 39... Kg5 {[%clk 0:00:01.3]} 40. Nd5 {[%clk
0:00:45.9]} 1-0

[Event "*** Titled Tuesday Blitz"]
[Site "Chess.com"]
[Date "2020.05.19"]
[Round "5"]
[White "A-Fier"]
[Black "elohunter1999"]
[Result "1-0"]
[WhiteElo "2743"]
[BlackElo "2552"]
[TimeControl "180+1"]
[EndTime "12:56:48 PDT"]
[Termination "A-Fier won on time"]

1. d4 {[%clk 0:03:00.9]} 1... Nf6 {[%clk 0:02:58.8]} 2. c4 {[%clk 0:03:00.7]}
2... e6 {[%clk 0:02:57.8]} 3. Nf3 {[%clk 0:03:00.3]} 3... d5 {[%clk 0:02:56.8]}
4. Nc3 {[%clk 0:02:59.9]} 4... Be7 {[%clk 0:02:42.9]} 5. Bf4 {[%clk 0:02:58.9]}
5... O-O {[%clk 0:02:42]} 6. e3 {[%clk 0:02:59.2]} 6... c5 {[%clk 0:02:41.9]} 7.
dxc5 {[%clk 0:02:58.4]} 7... Bxc5 {[%clk 0:02:41.3]} 8. Qc2 {[%clk 0:02:58.8]}
8... Nc6 {[%clk 0:02:39.7]} 9. a3 {[%clk 0:02:58.8]} 9... Re8 {[%clk 0:02:15]}
10. Rd1 {[%clk 0:02:46]} 10... Qa5 {[%clk 0:01:51.5]} 11. Nd2 {[%clk 0:02:43.7]}
11... e5 {[%clk 0:01:49]} 12. Bg5 {[%clk 0:02:43.3]} 12... Nd4 {[%clk
0:01:45.2]} 13. Qb1 {[%clk 0:02:42.9]} 13... Bf5 {[%clk 0:01:43.7]} 14. Bd3
{[%clk 0:02:42.8]} 14... Bxd3 {[%clk 0:01:42.4]} 15. Qxd3 {[%clk 0:02:43.7]}
15... Ne4 {[%clk 0:01:41.6]} 16. Nxd5 {[%clk 0:02:34.3]} 16... Nxg5 {[%clk
0:01:36.1]} 17. b4 {[%clk 0:02:30.9]} 17... Qd8 {[%clk 0:01:31.2]} 18. bxc5
{[%clk 0:02:30.2]} 18... Nde6 {[%clk 0:01:26.7]} 19. h4 {[%clk 0:02:24.7]} 19...
Nxc5 {[%clk 0:01:24.6]} 20. Qf5 {[%clk 0:02:24.9]} 20... Nge6 {[%clk 0:01:19.7]}
21. Nf3 {[%clk 0:02:24.5]} 21... Qa5+ {[%clk 0:01:07.1]} 22. Kf1 {[%clk
0:02:24.1]} 22... f6 {[%clk 0:01:05.1]} 23. h5 {[%clk 0:02:21.7]} 23... Qa4
{[%clk 0:00:58.8]} 24. Rc1 {[%clk 0:01:58.7]} 24... Qxa3 {[%clk 0:00:56.9]} 25.
Rb1 {[%clk 0:01:58.8]} 25... Qa2 {[%clk 0:00:47.2]} 26. Rh4 {[%clk 0:01:37.2]}
26... e4 {[%clk 0:00:43.3]} 27. Nxf6+ {[%clk 0:01:37.4]} 27... gxf6 {[%clk
0:00:36.6]} 28. Rg4+ {[%clk 0:01:37.5]} 28... Ng7 {[%clk 0:00:26.3]} 29. Qxf6
{[%clk 0:01:22.9]} 29... Qxc4+ {[%clk 0:00:13.1]} 30. Kg1 {[%clk 0:01:22.1]}
30... Qf7 {[%clk 0:00:13.6]} 31. Qc3 {[%clk 0:01:05.2]} 31... Na4 {[%clk
0:00:13.5]} 32. Qa1 {[%clk 0:01:02.3]} 32... h6 {[%clk 0:00:12.2]} 33. Ne5
{[%clk 0:00:59.1]} 33... Rxe5 {[%clk 0:00:10.9]} 34. Qxe5 {[%clk 0:00:58.6]}
34... Nb6 {[%clk 0:00:11.4]} 35. Qxe4 {[%clk 0:00:57.5]} 35... Re8 {[%clk
0:00:10.5]} 36. Qd4 {[%clk 0:00:50.3]} 36... Kh7 {[%clk 0:00:08.9]} 37. Rb5
{[%clk 0:00:50]} 37... Ne6 {[%clk 0:00:08.4]} 38. Qd3+ {[%clk 0:00:49.2]} 38...
Kh8 {[%clk 0:00:06.9]} 39. Rg6 {[%clk 0:00:49.6]} 39... Qf8 {[%clk 0:00:03.4]}
40. Rf5 {[%clk 0:00:48.3]} 1-0

[Event "*** Titled Tuesday Blitz"]
[Site "Chess.com"]
[Date "2020.05.19"]
[Round "5"]
[White "Szparu"]
[Black "Gareth-Bale11"]
[Result "1-0"]
[WhiteElo "2560"]
[BlackElo "2698"]
[TimeControl "180+1"]
[EndTime "12:56:49 PDT"]
[Termination "Szparu won by resignation"]

1. e4 {[%clk 0:02:21.5]} 1... c5 {[%clk 0:02:57.6]} 2. Nf3 {[%clk 0:02:21.6]}
2... d6 {[%clk 0:02:56.6]} 3. d4 {[%clk 0:02:21.6]} 3... cxd4 {[%clk 0:02:57.5]}
4. Nxd4 {[%clk 0:02:22.5]} 4... Nf6 {[%clk 0:02:57.1]} 5. Nc3 {[%clk 0:02:23.1]}
5... a6 {[%clk 0:02:57.5]} 6. Bg5 {[%clk 0:02:23.3]} 6... Nbd7 {[%clk
0:02:57.6]} 7. Qe2 {[%clk 0:02:23.2]} 7... e6 {[%clk 0:02:52.7]} 8. O-O-O {[%clk
0:02:22.4]} 8... Qc7 {[%clk 0:02:52.4]} 9. f4 {[%clk 0:02:22.6]} 9... b5 {[%clk
0:02:52]} 10. a3 {[%clk 0:02:21.9]} 10... Bb7 {[%clk 0:02:50.5]} 11. g4 {[%clk
0:02:21.2]} 11... h6 {[%clk 0:02:50.4]} 12. Bxf6 {[%clk 0:02:20.8]} 12... Nxf6
{[%clk 0:02:09]} 13. Bg2 {[%clk 0:02:18.4]} 13... Be7 {[%clk 0:01:43.8]} 14. h4
{[%clk 0:02:04.9]} 14... Nd7 {[%clk 0:01:36.7]} 15. Nd5 {[%clk 0:01:45.5]} 15...
exd5 {[%clk 0:01:24.2]} 16. exd5 {[%clk 0:01:45.5]} 16... Kf8 {[%clk 0:01:15.2]}
17. g5 {[%clk 0:01:34.2]} 17... Re8 {[%clk 0:01:05.8]} 18. Rhe1 {[%clk
0:01:28.2]} 18... hxg5 {[%clk 0:00:55.5]} 19. hxg5 {[%clk 0:01:28.1]} 19... g6
{[%clk 0:00:55.6]} 20. Kb1 {[%clk 0:01:01.1]} 20... Kg7 {[%clk 0:00:47]} 21. Qd2
{[%clk 0:00:56.9]} 21... Qd8 {[%clk 0:00:25.8]} 22. Nc6 {[%clk 0:00:53.9]} 22...
Bxc6 {[%clk 0:00:20]} 23. dxc6 {[%clk 0:00:54.5]} 23... Nb6 {[%clk 0:00:15.4]}
24. Qd4+ {[%clk 0:00:52.3]} 24... f6 {[%clk 0:00:14.2]} 25. Re6 {[%clk
0:00:37.6]} 25... Kf7 {[%clk 0:00:14.1]} 26. Rde1 {[%clk 0:00:26.6]} 26... Qc7
{[%clk 0:00:11.4]} 27. Bd5 {[%clk 0:00:17.1]} 27... Nxd5 {[%clk 0:00:10.4]} 28.
Qxd5 {[%clk 0:00:17.5]} 28... Kg7 {[%clk 0:00:06.6]} 29. gxf6+ {[%clk
0:00:17.7]} 29... Bxf6 {[%clk 0:00:06.3]} 30. Rxe8 {[%clk 0:00:18.1]} 30... Rxe8
{[%clk 0:00:06.7]} 31. Rxe8 {[%clk 0:00:18.8]} 1-0

[Event "*** Titled Tuesday Blitz"]
[Site "Chess.com"]
[Date "2020.05.19"]
[Round "5"]
[White "Msb2"]
[Black "djano"]
[Result "1-0"]
[WhiteElo "2888"]
[BlackElo "2449"]
[TimeControl "180+1"]
[EndTime "12:56:49 PDT"]
[Termination "Msb2 won by resignation"]

1. d4 {[%clk 0:03:00.9]} 1... Nf6 {[%clk 0:02:58.3]} 2. c4 {[%clk 0:03:01.4]}
2... e6 {[%clk 0:02:58.3]} 3. Nc3 {[%clk 0:03:02]} 3... Bb4 {[%clk 0:02:57.5]}
4. e3 {[%clk 0:03:02]} 4... b6 {[%clk 0:02:57.1]} 5. Bd2 {[%clk 0:03:00.9]} 5...
Bb7 {[%clk 0:02:57]} 6. Nf3 {[%clk 0:03:00.3]} 6... O-O {[%clk 0:02:56]} 7. Bd3
{[%clk 0:03:00.6]} 7... d6 {[%clk 0:02:53.4]} 8. b3 {[%clk 0:02:58.7]} 8... Nbd7
{[%clk 0:02:51.1]} 9. a3 {[%clk 0:02:58.7]} 9... Bxc3 {[%clk 0:02:50.5]} 10.
Bxc3 {[%clk 0:02:59.6]} 10... Ne4 {[%clk 0:02:50.6]} 11. Bb2 {[%clk 0:02:59.2]}
11... f5 {[%clk 0:02:48.4]} 12. O-O {[%clk 0:02:59.8]} 12... Ndf6 {[%clk
0:02:44.7]} 13. Nd2 {[%clk 0:02:58.8]} 13... Qe8 {[%clk 0:02:41]} 14. f3 {[%clk
0:02:58.7]} 14... Nxd2 {[%clk 0:02:38.3]} 15. Qxd2 {[%clk 0:02:59.6]} 15... Nh5
{[%clk 0:02:21.8]} 16. Rae1 {[%clk 0:02:47.9]} 16... e5 {[%clk 0:02:18.4]} 17.
d5 {[%clk 0:02:47.4]} 17... a5 {[%clk 0:02:12.6]} 18. f4 {[%clk 0:02:46.7]}
18... e4 {[%clk 0:02:08.3]} 19. Be2 {[%clk 0:02:45.1]} 19... Qg6 {[%clk
0:02:05.5]} 20. Qd4 {[%clk 0:02:43.4]} 20... Nf6 {[%clk 0:02:04.7]} 21. h3
{[%clk 0:02:43.2]} 21... Rf7 {[%clk 0:02:04.6]} 22. Kh2 {[%clk 0:02:32.8]} 22...
h5 {[%clk 0:02:00.7]} 23. g3 {[%clk 0:02:33]} 23... Re8 {[%clk 0:01:46.4]} 24.
Rg1 {[%clk 0:02:32.7]} 24... Kf8 {[%clk 0:01:41.1]} 25. Rg2 {[%clk 0:02:32.6]}
25... Ke7 {[%clk 0:01:38]} 26. Rh1 {[%clk 0:02:32.9]} 26... Rh8 {[%clk
0:01:36.8]} 27. Kg1 {[%clk 0:02:33.2]} 27... Kd8 {[%clk 0:01:35.1]} 28. Kf2
{[%clk 0:02:33.5]} 28... Rh7 {[%clk 0:01:29.3]} 29. Ke1 {[%clk 0:02:32.9]} 29...
Nd7 {[%clk 0:01:28.1]} 30. b4 {[%clk 0:02:32.2]} 30... axb4 {[%clk 0:01:23.3]}
31. axb4 {[%clk 0:02:33.1]} 31... Qf6 {[%clk 0:01:09.1]} 32. Qd2 {[%clk
0:02:20]} 32... Qe7 {[%clk 0:01:06.1]} 33. Kf2 {[%clk 0:02:20.5]} 33... g5
{[%clk 0:01:02.8]} 34. Ra1 {[%clk 0:02:20.4]} 34... h4 {[%clk 0:00:59.4]} 35.
Ra7 {[%clk 0:02:14.5]} 35... Kc8 {[%clk 0:00:58.7]} 36. Bd4 {[%clk 0:02:09.3]}
36... hxg3+ {[%clk 0:00:58]} 37. Rxg3 {[%clk 0:02:10.2]} 37... gxf4 {[%clk
0:00:58.2]} 38. exf4 {[%clk 0:02:11.1]} 38... Qh4 {[%clk 0:00:53.3]} 39. Qe3
{[%clk 0:02:04.8]} 39... Ne5 {[%clk 0:00:39.4]} 40. Kf1 {[%clk 0:01:55.9]} 40...
Nd7 {[%clk 0:00:31.2]} 41. c5 {[%clk 0:01:26.1]} 41... dxc5 {[%clk 0:00:30.1]}
42. bxc5 {[%clk 0:01:27]} 42... bxc5 {[%clk 0:00:28.8]} 43. Bxc5 {[%clk
0:01:21.4]} 43... Qd8 {[%clk 0:00:24]} 44. Bd4 {[%clk 0:01:08.9]} 44... Nb6
{[%clk 0:00:23.3]} 45. Bb5 {[%clk 0:00:51]} 45... Qxd5 {[%clk 0:00:18.5]} 46.
Rg8+ {[%clk 0:00:50.6]} 1-0

[Event "*** Titled Tuesday Blitz"]
[Site "Chess.com"]
[Date "2020.05.19"]
[Round "5"]
[White "Gennady_Kozlov"]
[Black "Andro2"]
[Result "1-0"]
[WhiteElo "2586"]
[BlackElo "2415"]
[TimeControl "180+1"]
[EndTime "12:56:49 PDT"]
[Termination "Gennady_Kozlov won by resignation"]

1. b3 {[%clk 0:03:00.9]} 1... d5 {[%clk 0:02:58.2]} 2. Bb2 {[%clk 0:02:59.7]}
2... Bg4 {[%clk 0:02:58.7]} 3. f3 {[%clk 0:02:57.1]} 3... Bf5 {[%clk 0:02:58]}
4. e3 {[%clk 0:02:56.2]} 4... Nd7 {[%clk 0:02:55.1]} 5. f4 {[%clk 0:02:56.6]}
5... e6 {[%clk 0:02:52.1]} 6. Nf3 {[%clk 0:02:57]} 6... h6 {[%clk 0:02:49.7]} 7.
Be2 {[%clk 0:02:57.3]} 7... Ngf6 {[%clk 0:02:49.6]} 8. O-O {[%clk 0:02:57.8]}
8... Bd6 {[%clk 0:02:50.1]} 9. d3 {[%clk 0:02:57.9]} 9... O-O {[%clk 0:02:42.3]}
10. Qe1 {[%clk 0:02:57.7]} 10... Bh7 {[%clk 0:02:33.4]} 11. Nbd2 {[%clk
0:02:56.6]} 11... Ng4 {[%clk 0:02:27.1]} 12. Qg3 {[%clk 0:02:54.9]} 12... Ngf6
{[%clk 0:02:20.2]} 13. Rae1 {[%clk 0:02:50.7]} 13... Re8 {[%clk 0:02:15.8]} 14.
e4 {[%clk 0:02:49.8]} 14... dxe4 {[%clk 0:02:04.2]} 15. Nxe4 {[%clk 0:02:47.7]}
15... Nh5 {[%clk 0:01:49.6]} 16. Qg4 {[%clk 0:02:47.3]} 16... Ndf6 {[%clk
0:01:48.8]} 17. Nxf6+ {[%clk 0:02:45.8]} 17... Nxf6 {[%clk 0:01:48]} 18. Qg3
{[%clk 0:02:41.7]} 18... Bc5+ {[%clk 0:01:38.6]} 19. Kh1 {[%clk 0:02:39.9]}
19... Bf8 {[%clk 0:01:38.2]} 20. Ne5 {[%clk 0:02:38.5]} 20... c5 {[%clk
0:01:33.7]} 21. Bf3 {[%clk 0:02:37.8]} 21... Rb8 {[%clk 0:01:31.8]} 22. a4
{[%clk 0:02:36.5]} 22... Nd7 {[%clk 0:01:22.1]} 23. Ng4 {[%clk 0:02:31.2]} 23...
Bg6 {[%clk 0:01:15.4]} 24. h4 {[%clk 0:02:29.1]} 24... Kh7 {[%clk 0:01:13.6]}
25. Ne3 {[%clk 0:02:22.5]} 25... Nf6 {[%clk 0:01:07.9]} 26. Bxf6 {[%clk
0:02:16.7]} 26... Qxf6 {[%clk 0:01:02.6]} 27. h5 {[%clk 0:02:17.6]} 27... Bf5
{[%clk 0:01:02.6]} 28. Nxf5 {[%clk 0:02:18.1]} 28... exf5 {[%clk 0:00:57.1]} 29.
Bd5 {[%clk 0:02:18.6]} 29... b6 {[%clk 0:00:44]} 30. Rf3 {[%clk 0:02:02.7]}
30... Bd6 {[%clk 0:00:43.3]} 31. Rfe3 {[%clk 0:01:58.6]} 31... Rxe3 {[%clk
0:00:42.8]} 32. Rxe3 {[%clk 0:01:59.5]} 32... Rd8 {[%clk 0:00:43]} 33. Bc4
{[%clk 0:01:56.5]} 33... Rd7 {[%clk 0:00:37.7]} 34. Qf2 {[%clk 0:01:51.4]} 34...
Re7 {[%clk 0:00:36.4]} 35. Rxe7 {[%clk 0:01:49.8]} 35... Bxe7 {[%clk 0:00:36.4]}
36. g3 {[%clk 0:01:50.1]} 36... Bd6 {[%clk 0:00:35.2]} 37. Qe2 {[%clk
0:01:48.4]} 37... g6 {[%clk 0:00:24.2]} 38. hxg6+ {[%clk 0:01:47.5]} 38... Kxg6
{[%clk 0:00:24.3]} 39. Kg2 {[%clk 0:01:46]} 39... h5 {[%clk 0:00:23.6]} 40. Qe8
{[%clk 0:01:42.6]} 40... Be7 {[%clk 0:00:17.9]} 41. Qg8+ {[%clk 0:01:41.5]}
41... Qg7 {[%clk 0:00:17.2]} 42. Bxf7+ {[%clk 0:01:41.4]} 42... Kf6 {[%clk
0:00:17.8]} 43. Qxg7+ {[%clk 0:01:42]} 43... Kxg7 {[%clk 0:00:17.3]} 44. Bxh5
{[%clk 0:01:42.9]} 44... Kf6 {[%clk 0:00:16.2]} 45. Kf3 {[%clk 0:01:42.5]} 45...
Bd6 {[%clk 0:00:15.8]} 46. Be8 {[%clk 0:01:41.5]} 46... a5 {[%clk 0:00:14.9]}
47. Bd7 {[%clk 0:01:40.9]} 47... Be7 {[%clk 0:00:13.8]} 48. Ke3 {[%clk
0:01:40.9]} 48... Bd6 {[%clk 0:00:13]} 49. Kd2 {[%clk 0:01:39.5]} 49... Be7
{[%clk 0:00:12.1]} 50. Kc3 {[%clk 0:01:39.4]} 50... Bd8 {[%clk 0:00:11.4]} 51.
Kc4 {[%clk 0:01:39.2]} 51... Bc7 {[%clk 0:00:11.5]} 52. Kd5 {[%clk 0:01:39.2]}
52... Ke7 {[%clk 0:00:11.2]} 53. Bxf5 {[%clk 0:01:38.4]} 53... Kf6 {[%clk
0:00:11.4]} 54. Bc8 {[%clk 0:01:37.3]} 54... Bd8 {[%clk 0:00:11.1]} 55. Kc6
{[%clk 0:01:37.1]} 55... Ke7 {[%clk 0:00:10.2]} 56. g4 {[%clk 0:01:35.6]} 56...
Ke8 {[%clk 0:00:11.1]} 57. g5 {[%clk 0:01:35.6]} 57... Ke7 {[%clk 0:00:10.6]}
58. f5 {[%clk 0:01:35.6]} 58... Ke8 {[%clk 0:00:10.2]} 59. f6 {[%clk 0:01:36.5]}
59... Kf7 {[%clk 0:00:10.1]} 60. Bf5 {[%clk 0:01:36]} 60... Ke8 {[%clk
0:00:09.3]} 61. Be6 {[%clk 0:01:34.4]} 61... Kf8 {[%clk 0:00:09]} 62. Kd7 {[%clk
0:01:33.8]} 1-0

[Event "*** Titled Tuesday Blitz"]
[Site "Chess.com"]
[Date "2020.05.19"]
[Round "5"]
[White "tan275"]
[Black "XiaoKangZhong"]
[Result "1-0"]
[WhiteElo "2196"]
[BlackElo "2398"]
[TimeControl "180+1"]
[EndTime "12:56:50 PDT"]
[Termination "tan275 won by checkmate"]

1. d4 {[%clk 0:02:41.3]} 1... Nf6 {[%clk 0:02:58.7]} 2. c4 {[%clk 0:02:40.9]}
2... g6 {[%clk 0:02:58.2]} 3. g3 {[%clk 0:02:40.5]} 3... Bg7 {[%clk 0:02:58]} 4.
Bg2 {[%clk 0:02:41]} 4... O-O {[%clk 0:02:56.8]} 5. Nc3 {[%clk 0:02:41.5]} 5...
c6 {[%clk 0:02:53.3]} 6. Nf3 {[%clk 0:02:37]} 6... d5 {[%clk 0:02:53.1]} 7. O-O
{[%clk 0:02:28.4]} 7... Ne4 {[%clk 0:02:49.6]} 8. cxd5 {[%clk 0:02:05.7]} 8...
cxd5 {[%clk 0:02:50.5]} 9. Ne5 {[%clk 0:02:04.1]} 9... Nxc3 {[%clk 0:02:48.9]}
10. bxc3 {[%clk 0:02:03.6]} 10... Nc6 {[%clk 0:02:49.6]} 11. Nd3 {[%clk
0:01:59.3]} 11... Bf5 {[%clk 0:02:31.7]} 12. Ba3 {[%clk 0:01:51.1]} 12... Rc8
{[%clk 0:02:29.4]} 13. Qb3 {[%clk 0:01:28]} 13... Be4 {[%clk 0:01:48.1]} 14.
Qxb7 {[%clk 0:01:24.8]} 14... Na5 {[%clk 0:01:46.4]} 15. Qxe7 {[%clk 0:01:20.9]}
15... Nc4 {[%clk 0:01:01.6]} 16. Qxd8 {[%clk 0:01:05.8]} 16... Rfxd8 {[%clk
0:01:02.5]} 17. Bc5 {[%clk 0:01:04.4]} 17... Bxd3 {[%clk 0:00:56.3]} 18. exd3
{[%clk 0:01:03.8]} 18... Nb2 {[%clk 0:00:56.6]} 19. Rab1 {[%clk 0:01:01.5]}
19... Nxd3 {[%clk 0:00:55.2]} 20. Bxa7 {[%clk 0:00:43.9]} 20... Rxc3 {[%clk
0:00:53.8]} 21. Rb7 {[%clk 0:00:29]} 21... Ra3 {[%clk 0:00:45.2]} 22. Bc5 {[%clk
0:00:19.3]} 22... Rxa2 {[%clk 0:00:41.6]} 23. Be7 {[%clk 0:00:18.7]} 23... Re8
{[%clk 0:00:38.4]} 24. Bxd5 {[%clk 0:00:18.4]} 24... Bxd4 {[%clk 0:00:38.3]} 25.
Bxa2 {[%clk 0:00:16.8]} 25... Ne5 {[%clk 0:00:33.2]} 26. Rc7 {[%clk 0:00:15.7]}
26... Bb6 {[%clk 0:00:31.7]} 27. Rb7 {[%clk 0:00:15.2]} 27... Bd4 {[%clk
0:00:31.9]} 28. Bf6 {[%clk 0:00:15.2]} 28... Rf8 {[%clk 0:00:23.6]} 29. Bxe5
{[%clk 0:00:15.1]} 29... Bxe5 {[%clk 0:00:24.5]} 30. Rd1 {[%clk 0:00:15]} 30...
Bf6 {[%clk 0:00:23.9]} 31. Rdd7 {[%clk 0:00:15.4]} 31... Rc8 {[%clk 0:00:22.8]}
32. Bxf7+ {[%clk 0:00:14.2]} 32... Kh8 {[%clk 0:00:22.2]} 33. Bd5 {[%clk
0:00:14.7]} 33... Bd4 {[%clk 0:00:21.2]} 34. Rxh7# {[%clk 0:00:14.6]} 1-0